bitfinex-derivatives/quotes_ETHF0:USTF0_20251012
["timestamp","ask_amount","ask_price","bid_price","bid_amount"]
[1760246211660,0.9699,3808.5,3808.4,0.70351]
[1760246211965,0.9699,3809.0,3808.9,0.47215]
[1760246213365,0.9699,3809.0,3808.0,2.48350668]
[1760246213366,0.4839,3808.8,3808.7,0.47216]
[1760246213664,0.8295,3808.8,3808.7,0.47216]
[1760246214159,0.5864,3808.8,3808.7,0.70346]
[1760246214366,0.5864,3808.8,3808.7,0.92296]
[1760246214562,0.8295,3808.8,3808.7,0.92296]
[1760246215462,0.5864,3808.8,3808.7,1.26736]
[1760246215664,0.486,3809.0,3808.9,1.26735]
[1760246215966,0.9699,3809.0,3808.9,0.92295]
[1760246216564,0.9699,3809.0,3808.9,0.47215]
[1760246216765,0.3456,3808.9,3808.4,1.880878]
[1760246216964,0.9699,3808.5,3808.4,2.803888]
[1760246217967,0.9699,3808.5,3808.4,0.70351]
[1760246218670,0.9699,3808.5,3808.4,0.92301]
[1760246219671,0.3456,3808.9,3808.8,0.70345]
[1760246219868,0.8295,3808.9,3808.8,0.92295]
[1760246220373,0.8295,3808.9,3808.8,0.70345]
[1760246220670,0.8295,3808.9,3808.8,0.47215]
[1760246229677,0.8295,3808.9,3808.8,0.69265]
[1760246231775,0.4614,3809.4,3809.3,0.6926]
[1760246232278,0.8039,3809.4,3809.3,0.6926]
[1760246232880,0.8039,3809.4,3809.3,0.9143]
[1760246233683,0.80593572,3809.8,3809.7,0.69255]
[1760246233881,0.80593572,3809.8,3809.7,0.47205]
[1760246235479,0.8039,3809.4,3809.3,0.4721]
[1760246236183,0.8039,3809.4,3809.3,0.6926]
[1760246236683,0.5694,3809.4,3809.3,0.9143]
[1760246236885,0.5694,3809.4,3809.3,1.2733]
[1760246237185,0.3425,3809.4,3809.3,1.2733]
[1760246237386,0.46343572,3809.8,3809.7,0.69255]
[1760246237586,0.57143572,3809.8,3809.7,1.27325]
[1760246237786,0.34453572,3809.8,3809.7,1.27325]
[1760246237987,0.00203572,3809.8,3809.7,1.27325]
[1760246238290,0.00203572,3809.8,3809.7,6.27325]
[1760246241399,0.00203572,3809.8,3809.7,8.15371903]
[1760246241892,0.00203572,3809.8,3809.7,6.27325]
[1760246243294,0.00203572,3809.8,3809.7,8.15253861]
[1760246243892,0.80593572,3809.8,3809.7,0.91425]
[1760246244088,0.80593572,3809.8,3809.7,0.69255]
[1760246244797,0.80593572,3809.8,3809.7,0.91425]
[1760246244990,0.00203572,3809.8,3809.7,1.27325]
[1760246245895,0.00203572,3809.8,3809.7,6.27325]
[1760246246095,0.00203572,3809.8,3809.7,8.15253861]
[1760246247195,0.3425,3810.5,3810.4,0.47196]
[1760246247494,0.3425,3810.5,3810.4,1.27316]
[1760246247895,0.5694,3810.5,3810.4,1.27316]
[1760246248289,0.57255446,3810.5,3810.4,1.27626241]
[1760246248490,0.95275446,3810.5,3810.4,0.91726241]
[1760246250400,0.95275446,3810.5,3810.4,0.69556241]
[1760246251397,0.95275446,3810.5,3810.4,0.00310241]
[1760246252895,0.95275446,3810.5,3810.4,0.44530241]
[1760246253198,0.95275446,3810.5,3810.4,0.80430241]
[1760246254298,0.95275446,3810.5,3810.4,0.44530241]
[1760246254486,0.95275446,3810.5,3810.4,0.22360241]
[1760246254891,0.95275446,3810.5,3810.4,0.46150241]
[1760246256999,0.95275446,3810.5,3810.4,0.82130241]
[1760246257303,0.57255446,3810.5,3810.4,0.82130241]
[1760246257800,0.94055446,3810.5,3810.4,0.46150241]
[1760246258901,0.94055446,3810.5,3810.4,0.00310241]
[1760246261305,5.94055446,3810.5,3810.4,0.00310241]
[1760246261895,0.94055446,3810.5,3810.4,0.00310241]
[1760246266611,0.94055446,3810.5,3810.4,0.45570241]
[1760246267304,0.00315446,3810.5,3810.4,5.79040241]
[1760246268005,0.00315446,3810.5,3810.4,8.15280909]
[1760246268406,0.00315446,3810.5,3810.4,5.79040241]
[1760246269006,0.00315446,3810.5,3810.4,8.15280909]
[1760246269414,0.3845,3811.5,3811.4,0.7873]
[1760246269706,0.4624,3811.8,3811.7,0.9244]
[1760246269903,0.1405,3812.5,3811.7,0.4526]
[1760246270107,0.1405,3812.5,3811.5,1.88425142]
[1760246270108,0.7953,3812.3,3812.2,0.92433]
[1760246270315,0.79811622,3812.3,3812.2,0.92433]
[1760246270505,0.79811622,3812.3,3812.2,1.25903]
[1760246270705,0.57451622,3812.3,3812.2,1.25903]
[1760246271008,0.00281622,3812.3,3812.2,1.25903]
[1760246271205,0.24161622,3812.3,3812.2,1.25903]
[1760246271406,0.33571622,3812.3,3812.2,1.25903]
[1760246271608,0.00281622,3812.3,3812.2,1.25903]
[1760246272311,0.1405,3813.0,3812.7,1.25898]
[1760246272609,0.3329,3813.2,3812.7,1.25898]
[1760246273001,0.1405,3813.5,3812.7,0.92428]
[1760246273002,0.8173,3812.8,3812.7,0.92428]
[1760246273208,0.82055008,3812.8,3812.7,0.92428]
[1760246274405,0.82055008,3812.8,3812.2,0.47173]
[1760246274406,0.48765008,3812.8,3812.2,0.47173]
[1760246274605,0.3329,3812.1,3812.0,1.25906]
[1760246274809,0.9358,3812.5,3812.4,0.92431]
[1760246275610,0.5717,3811.7,3811.6,1.25911]
[1760246275803,0.3329,3811.7,3811.6,1.25911]
[1760246276108,0.3329,3811.7,3811.2,0.3347]
[1760246276109,0.1405,3811.5,3811.2,0.3347]
[1760246276405,0.1405,3811.5,3810.5,1.87705668]
[1760246276611,0.3329,3811.4,3810.4,0.33780241]
[1760246276812,0.2388,3810.5,3810.4,0.79040241]
[1760246277005,0.9358,3810.5,3810.4,0.00310241]
[1760246278510,0.3329,3810.4,3809.2,0.3347]
[1760246278812,0.7953,3809.3,3809.2,0.4526]
[1760246279213,0.7953,3809.3,3809.2,0.2325]
[1760246279418,0.7953,3809.3,3808.8,0.3347]
[1760246279712,0.3329,3809.2,3808.8,0.33702867]
[1760246279907,0.5717,3809.2,3809.1,0.2325]
[1760246280107,0.7953,3809.2,3809.1,0.2325]
[1760246280311,0.00331827,3809.3,3809.2,0.7873]
[1760246282115,0.79861827,3809.3,3809.2,0.4526]
[1760246282815,0.57501827,3809.3,3809.2,0.4526]
[1760246283008,0.57501827,3809.3,3809.2,0.7873]
[1760246283208,0.33621827,3809.3,3809.2,0.7873]
[1760246283814,0.00331827,3809.3,3809.2,0.7873]
[1760246284309,0.59231827,3809.3,3809.2,0.4526]
[1760246284511,0.59231827,3809.3,3809.2,0.2325]
[1760246284512,0.82471827,3809.3,3809.2,0.2325]
[1760246285110,0.00331827,3809.3,3809.2,1.30471]
[1760246286411,0.00331827,3809.3,3809.2,6.30471]
[1760246287014,0.589,3810.3,3810.2,1.07208]
[1760246287312,0.589,3810.3,3810.2,1.31378]
[1760246287512,0.3491,3810.3,3810.2,1.31378]
[1760246288014,0.35126382,3810.3,3810.2,1.31378]
[1760246288915,0.00216382,3810.3,3810.2,1.31378]
[1760246290816,0.82356382,3810.3,3809.8,0.83143]
[1760246291009,0.3491,3810.2,3809.8,0.47203]
[1760246291321,0.589,3810.2,3810.1,0.4824]
[1760246291517,0.8214,3810.2,3810.1,0.4824]
[1760246292322,0.8214,3810.2,3810.1,0.2417]
[1760246292623,0.8214,3809.2,3809.1,0.2417]
[1760246293021,0.8214,3809.2,3809.1,0.4824]
[1760246293223,0.3491,3809.2,3809.1,0.8418]
[1760246293825,0.3491,3809.2,3809.1,1.31392]
[1760246294120,0.589,3809.2,3809.1,1.31392]
[1760246294324,0.589,3809.2,3809.1,0.95452]
[1760246294520,0.589,3809.2,3808.8,0.36172867]
[1760246294521,0.1385,3809.0,3808.8,0.00232867]
[1760246294721,0.3491,3808.9,3808.8,0.00232867]
[1760246294915,0.3491,3808.9,3808.8,0.36172867]
[1760246295623,0.1385,3809.5,3809.0,0.3594]
[1760246295825,0.1385,3809.0,3808.8,0.00232867]
[1760246296124,0.3491,3808.9,3808.8,0.00232867]
[1760246297226,0.589,3808.9,3808.8,0.24402867]
[1760246297920,0.589,3808.9,3808.8,0.48472867]
[1760246298121,0.3491,3809.4,3809.3,0.2417]
[1760246298415,0.589,3809.4,3809.3,0.4824]
[1760246298620,0.8214,3809.4,3809.3,0.4824]
[1760246299617,0.3491,3809.4,3809.3,0.8418]
[1760246299826,0.8214,3809.9,3809.8,0.2417]
[1760246301226,0.3491,3809.9,3809.8,0.8418]
[1760246301427,0.589,3809.9,3809.8,0.8418]
[1760246301621,0.00216382,3810.3,3809.8,0.8418]
[1760246301830,0.00216382,3810.3,3810.2,1.31379]
[1760246302127,0.00216382,3810.3,3810.2,0.83139]
[1760246302624,0.3491,3810.2,3809.6,1.87705668]
[1760246302820,0.3491,3809.4,3809.0,1.87705668]
[1760246303021,0.4876,3809.0,3808.8,0.00232867]
[1760246303527,0.3491,3808.9,3808.8,0.47447867]
[1760246303727,0.3491,3809.4,3809.0,0.47212]
[1760246303927,0.3491,3809.4,3809.1,0.47211]
[1760246304223,0.3491,3809.4,3809.3,0.47209]
[1760246307525,0.1385,3809.0,3808.8,0.00232867]
[1760246307717,0.3491,3808.9,3808.8,0.47448867]
[1760246308423,0.1385,3809.5,3809.3,0.47209]
[1760246308723,0.3491,3809.4,3809.1,0.47212]
[1760246308924,0.3491,3809.4,3809.2,0.4721]
[1760246309227,0.3491,3809.4,3809.3,0.47209]
[1760246312328,0.589,3809.4,3809.3,0.95449]
[1760246312832,0.8214,3809.4,3809.3,0.95449]
[1760246313427,0.3491,3809.4,3809.3,1.31389]
[1760246313626,0.8214,3809.9,3809.8,0.47203]
[1760246314129,0.8214,3809.9,3809.5,0.47206]
[1760246314324,0.2413,3809.6,3809.5,0.47206]
[1760246314533,0.8141,3809.6,3809.5,0.47206]
[1760246315830,0.4678,3809.3,3809.2,0.47211]
[1760246316127,0.5876,3809.3,3809.2,1.29351]
[1760246316326,0.4797,3809.5,3809.4,0.47209]
[1760246316532,0.4797,3809.5,3809.4,1.29349]
[1760246316722,0.721,3809.5,3809.4,1.29349]
[1760246317124,0.3798,3810.0,3809.9,0.47202]
[1760246317334,0.3463,3810.0,3809.9,1.29342]
[1760246317637,0.5876,3810.0,3809.9,1.29342]
[1760246320526,0.58976382,3810.3,3810.2,1.29339]
[1760246320736,0.00216382,3810.3,3810.2,1.29339]
[1760246322032,0.00216382,3810.3,3810.2,6.29339]
[1760246322533,0.00216382,3810.3,3810.2,1.29339]
[1760246323333,0.5874,3811.4,3811.3,0.69525]
[1760246323531,0.8241,3811.4,3811.3,0.69525]
[1760246323929,0.5874,3811.4,3811.3,1.27205]
[1760246324136,0.3493,3811.4,3811.3,1.27205]
[1760246324338,0.35159865,3811.4,3811.3,1.27205]
[1760246325041,0.58969865,3811.4,3811.3,1.27205]
[1760246325538,0.8241,3811.2,3811.1,0.47186]
[1760246325737,0.8241,3811.2,3811.1,0.69526]
[1760246325932,0.5874,3811.2,3811.1,1.27206]
[1760246326139,0.35159865,3811.4,3811.3,1.27205]
[1760246326335,0.00229865,3811.4,3811.3,1.27205]
[1760246326642,0.82639865,3811.4,3811.3,0.93655]
[1760246327237,0.82639865,3811.4,3811.3,0.47185]
[1760246328438,0.82639865,3811.4,3811.3,0.69525]
[1760246329537,0.82639865,3811.4,3811.3,0.47185]
[1760246329742,0.82639865,3811.4,3811.3,0.69525]
[1760246330346,0.139,3811.0,3810.5,2.21541883]
[1760246330643,0.5874,3810.6,3810.5,1.27215]
[1760246330945,0.9631,3811.0,3810.9,0.9366]
[1760246331345,0.58969865,3811.4,3811.3,0.93655]
[1760246331738,0.58969865,3811.4,3811.3,0.69525]
[1760246331739,0.82639865,3811.4,3811.3,0.69525]
[1760246331941,0.82639865,3811.4,3811.3,0.47185]
[1760246332241,0.82639865,3811.4,3811.3,1.27205]
[1760246332634,0.00229865,3811.4,3811.3,1.27205]
[1760246333339,0.00229865,3811.4,3811.3,6.27205]
[1760246336241,0.24039865,3811.4,3811.3,1.27205]
[1760246336548,0.58969865,3811.4,3811.3,1.27205]
[1760246336742,0.00229865,3811.4,3811.3,1.27205]
[1760246337347,0.82639865,3811.4,3811.3,0.93655]
[1760246338241,0.82639865,3811.4,3811.3,1.27205]
[1760246339036,0.24039865,3811.4,3811.3,1.27205]
[1760246339241,0.24039865,3811.4,3811.3,0.93655]
[1760246339242,0.82639865,3811.4,3811.3,0.93655]
[1760246339948,0.82639865,3811.4,3811.3,1.27205]
[1760246340137,0.00229865,3811.4,3811.3,1.27205]
[1760246341047,0.58969865,3811.4,3811.3,0.93655]
[1760246341244,0.82639865,3811.4,3811.3,0.93655]
[1760246341449,0.8241,3810.9,3810.8,0.93661]
[1760246342036,0.8241,3810.9,3810.8,0.4647]
[1760246342247,0.2367,3810.1,3810.0,2.10331883]
[1760246342447,0.8241,3810.1,3810.0,0.2234]
[1760246342849,0.8241,3810.1,3810.0,0.69541]
[1760246344249,0.8241,3810.1,3810.0,0.93671]
[1760246344748,0.8241,3810.1,3810.0,0.69541]
[1760246344940,0.8241,3810.1,3810.0,0.47201]
[1760246345141,0.8238,3809.9,3809.8,0.47203]
[1760246345339,0.2251,3809.7,3809.6,0.47206]
[1760246345545,0.8238,3809.7,3809.6,0.71206]
[1760246346147,0.8238,3809.7,3809.6,0.94916]
[1760246347148,0.5827,3809.7,3809.6,1.30116]
[1760246347648,0.5827,3809.7,3809.6,0.94916]
[1760246348045,0.8238,3809.7,3809.4,0.47208]
[1760246348242,0.4662,3809.3,3809.2,1.87991883]
[1760246348446,0.3576,3809.2,3808.8,1.8822475]
[1760246348647,0.5827,3808.9,3808.8,2.8315075]
[1760246348846,0.5827,3808.9,3808.8,3.1835075]
[1760246349143,0.9652,3809.5,3809.4,0.71209]
[1760246349349,0.7241,3809.5,3809.4,1.30119]
[1760246349542,0.9652,3809.5,3809.4,0.71209]
[1760246349740,0.9652,3809.5,3809.4,0.47209]
[1760246351442,0.4662,3809.3,3809.2,0.4721]
[1760246351643,0.8238,3809.3,3809.2,0.4721]
[1760246354240,0.1414,3809.5,3808.8,0.00232867]
[1760246354241,0.4662,3808.9,3808.8,0.00232867]
[1760246354440,0.8238,3808.9,3808.8,0.47448867]
[1760246356450,0.8238,3808.9,3808.8,0.95158867]
[1760246356947,0.1414,3809.5,3809.4,0.47209]
[1760246357150,0.9652,3809.5,3809.4,0.47209]
[1760246359254,0.8238,3809.3,3809.2,0.4721]
[1760246359751,0.8238,3808.9,3808.8,0.00232867]
[1760246362753,0.8238,3808.9,3807.9,0.352]
[1760246362754,0.8238,3808.3,3808.2,0.47223]
[1760246363346,0.8238,3808.3,3807.5,0.352]
[1760246363547,0.5827,3807.6,3807.5,0.8291]
[1760246363754,0.58587645,3807.6,3807.5,1.30430884]
[1760246365160,0.00317645,3807.6,3807.5,1.42510884]
[1760246367864,0.00317645,3807.6,3807.5,1.30430884]
[1760246369063,0.1414,3808.5,3808.1,0.47225]
[1760246369064,0.3576,3808.2,3808.1,0.47225]
[1760246369256,0.5827,3808.2,3808.1,1.30135]
[1760246369657,0.8238,3808.2,3808.1,0.94935]
[1760246370059,0.82719011,3808.2,3808.1,0.94935]
[1760246371257,0.82719011,3808.2,3808.1,0.47225]
[1760246371462,0.3576,3808.1,3808.0,0.47225]
[1760246371656,0.8238,3807.6,3807.5,0.47520884]
[1760246374359,0.8238,3807.6,3807.5,0.95680884]
[1760246374555,0.8151,3807.6,3807.5,0.95680884]
[1760246374761,0.8151,3807.6,3807.5,0.47520884]
[1760246374955,0.8151,3807.6,3807.5,0.00288884]
[1760246375265,5.8151,3807.6,3807.5,0.00288884]
[1760246379562,5.8151,3807.6,3807.4,0.47233]
[1760246379863,0.2372,3806.3,3806.2,0.812]
[1760246380069,0.2372,3806.3,3806.2,1.28448]
[1760246380277,0.4575,3806.3,3806.2,1.28448]
[1760246380566,0.4575,3806.3,3806.2,1.28745519]
[1760246381168,0.2372,3806.3,3806.2,1.28745519]
[1760246382073,0.2401,3806.8,3806.7,1.30392]
[1760246382270,0.4622,3806.8,3806.7,1.30392]
[1760246382768,0.7687,3806.8,3806.7,0.47242]
[1760246384067,0.4622,3806.8,3806.5,0.47244]
[1760246384270,0.7687,3806.3,3806.2,0.47545519]
[1760246384467,0.7687,3806.3,3806.2,0.83435519]
[1760246384769,0.7687,3806.3,3806.2,0.47545519]
[1760246385565,0.7687,3806.3,3806.2,1.06495519]
[1760246387268,0.4622,3806.3,3806.2,1.30695519]
[1760246388375,0.2401,3806.3,3806.2,1.30695519]
[1760246388773,0.7687,3806.7,3806.6,1.06193]
[1760246389074,0.7687,3807.0,3806.9,0.5895]
[1760246390884,0.7687,3807.0,3806.9,0.3589]
[1760246391084,0.2401,3807.0,3806.9,0.8315]
[1760246391379,0.7687,3807.0,3806.8,0.4724]
[1760246391574,0.7687,3806.3,3806.2,0.47545519]
[1760246392182,0.7687,3806.3,3806.2,0.83435519]
[1760246392483,0.7687,3806.3,3806.2,0.47545519]
[1760246395279,5.7687,3806.3,3804.6,3.54410668]
[1760246395486,0.7687,3805.2,3805.1,0.47262]
[1760246395786,0.7687,3805.2,3805.1,0.83152]
[1760246396485,0.7687,3805.2,3805.1,0.47262]
[1760246398287,0.77146887,3805.2,3805.1,0.47464266]
[1760246399193,0.3065,3804.6,3804.1,0.3589]
[1760246399491,0.7687,3804.2,3804.1,1.06224]
[1760246399783,0.4622,3804.2,3804.1,1.06224]
[1760246400482,0.4622,3804.2,3804.1,1.30608556]
[1760246400683,0.2401,3805.1,3805.0,0.70322]
[1760246400882,0.2401,3805.1,3805.0,0.47262]
[1760246400883,0.7687,3805.1,3805.0,0.47262]
[1760246401083,0.7687,3804.7,3804.6,0.47268]
[1760246401885,0.7687,3804.7,3804.6,0.83158]
[1760246403095,0.7687,3804.7,3804.2,0.3589]
[1760246403296,0.4622,3804.5,3804.4,0.4727]
[1760246403494,0.7687,3804.5,3804.4,0.4727]
[1760246403797,0.7687,3804.5,3804.4,0.8335]
[1760246404292,0.7687,3804.5,3804.4,0.4727]
[1760246404994,0.7687,3804.5,3804.4,0.8335]
[1760246406595,0.7687,3804.5,3804.4,1.0553]
[1760246407592,0.3087,3804.4,3804.2,0.47272]
[1760246407892,0.8404,3804.5,3804.1,0.36264556]
[1760246408090,0.7676,3804.2,3804.1,0.47458556]
[1760246408292,0.7676,3804.2,3804.1,1.05718556]
[1760246409387,0.2256,3804.6,3804.5,0.91699]
[1760246409586,0.2256,3804.6,3804.5,1.41429]
[1760246409799,0.7676,3804.6,3804.1,0.00184556]
[1760246410095,0.7676,3804.3,3804.2,0.83353]
[1760246410391,0.3087,3804.2,3804.1,0.47458556]
[1760246410596,0.7676,3804.2,3804.1,0.47458556]
[1760246410802,0.7676,3804.2,3804.1,0.83538556]
[1760246412591,0.7676,3804.2,3804.1,1.05718556]
[1760246412998,0.4589,3804.2,3804.1,1.05718556]
[1760246413593,0.7676,3804.2,3804.1,0.83538556]
[1760246413799,0.7676,3804.2,3804.1,0.47458556]
[1760246414305,0.7676,3804.2,3804.1,0.00184556]
[1760246415998,0.2256,3804.2,3804.1,0.58444556]
[1760246416197,0.2256,3804.2,3804.1,0.80694556]
[1760246416396,5.7676,3804.2,3804.1,0.00184556]
[1760246416592,0.4589,3803.0,3802.9,0.5826]
[1760246416800,0.7658,3803.0,3802.8,0.49918641]
[1760246417005,0.7658,3802.9,3802.8,0.02629641]
[1760246417204,0.4589,3802.9,3802.8,0.60889641]
[1760246417403,0.7658,3803.3,3803.2,0.2218]
[1760246417598,0.4589,3803.3,3803.2,0.58531943]
[1760246417793,0.7658,3803.3,3803.2,0.00271943]
[1760246421100,5.7658,3803.3,3803.2,0.00271943]
[1760246421298,0.7658,3802.9,3802.8,0.02629641]
[1760246421498,0.4589,3802.9,3802.8,0.83139641]
[1760246421799,0.7658,3802.9,3802.8,0.38709641]
[1760246422000,0.7658,3802.9,3802.8,0.02629641]
[1760246422199,0.7658,3802.9,3802.8,0.02938337]
[1760246423403,0.7658,3802.9,3802.8,0.39018337]
[1760246423709,0.2256,3802.9,3802.8,0.83448337]
[1760246425107,0.2256,3802.9,3802.8,0.61198337]
[1760246425108,0.4589,3802.9,3802.8,0.61198337]
[1760246425299,0.2256,3802.9,3802.8,0.83448337]
[1760246425700,0.7658,3803.3,3803.2,0.83365]
[1760246426002,0.2256,3803.3,3803.2,1.27795]
[1760246426808,0.7658,3803.3,3803.1,0.47286]
[1760246427005,0.3069,3803.1,3802.8,0.02938337]
[1760246427309,0.7658,3802.9,3802.8,0.02938337]
[1760246429403,5.7658,3802.9,3802.8,0.02938337]
[1760246430704,0.7658,3802.9,3802.8,0.02938337]
[1760246436308,0.2777,3802.8,3802.6,0.47292]
[1760246436517,0.46,3802.7,3802.4,0.47295]
[1760246436814,0.7813,3802.5,3802.4,0.47295]
[1760246437212,0.78407674,3802.5,3802.4,0.47487155]
[1760246437409,0.74047674,3802.5,3802.4,0.47487155]
[1760246437913,0.46277674,3802.5,3802.4,1.05877155]
[1760246439019,0.46277674,3802.5,3802.4,1.30187155]
[1760246440114,0.00277674,3802.5,3802.4,1.30187155]
[1760246440320,6.74e-06,3802.5,3802.4,6.30187155]
[1760246441021,0.46,3803.7,3803.1,0.3637]
[1760246441519,0.7384,3803.6,3803.5,0.82651]
[1760246441923,0.74119476,3803.6,3803.5,0.82651]
[1760246442419,0.74119476,3803.6,3803.5,0.47281]
[1760246442611,0.0757,3803.5,3802.9,0.3537]
[1760246442812,0.0757,3803.5,3802.2,0.3537]
[1760246442813,0.0826,3803.0,3802.2,0.3537]
[1760246443110,0.236,3802.5,3802.4,1.29347155]
[1760246443415,0.4608,3803.0,3802.9,1.29149]
[1760246444022,0.236,3803.0,3802.9,1.29149]
[1760246444321,0.7384,3803.4,3803.3,0.82654]
[1760246446311,0.7384,3803.4,3803.3,0.47284]
[1760246447326,0.821,3803.0,3802.9,0.47289]
[1760246447517,0.7384,3802.9,3802.8,0.4729]
[1760246448023,0.236,3802.9,3802.8,6.2915]
[1760246448721,0.236,3803.5,3803.4,1.06433]
[1760246448924,0.4608,3803.5,3803.4,1.06433]
[1760246449123,0.4608,3803.5,3803.4,1.29143]
[1760246451125,0.236,3803.5,3803.4,1.29143]
[1760246451420,0.00279476,3803.6,3803.4,1.29143]
[1760246451620,0.00279476,3803.6,3803.5,0.9543]
[1760246452329,4.76e-06,3803.6,3803.5,5.9543]
[1760246453216,4.76e-06,3803.6,3803.5,7.83421883]
[1760246453426,4.76e-06,3803.6,3803.5,5.9543]
[1760246455126,4.76e-06,3803.6,3803.5,7.83421883]
[1760246455321,0.23600476,3803.6,3803.5,0.9543]
[1760246455527,0.23600476,3803.6,3803.5,0.7272]
[1760246455528,0.73840476,3803.6,3803.5,0.7272]
[1760246455719,0.73840476,3803.6,3803.5,0.9543]
[1760246455720,0.46080476,3803.6,3803.5,0.9543]
[1760246455920,4.76e-06,3803.6,3803.5,0.6006]
[1760246456326,0.23600476,3803.6,3803.5,0.6006]
[1760246456519,4.76e-06,3803.6,3803.5,0.6006]
[1760246458229,0.23600476,3803.6,3803.5,0.6006]
[1760246458730,0.23600476,3803.6,3803.5,0.9543]
[1760246458924,4.76e-06,3803.6,3803.5,0.6006]
[1760246459827,4.76e-06,3803.6,3803.5,5.6006]
[1760246462827,0.2776,3805.4,3804.0,1.18188]
[1760246463021,0.236,3805.0,3804.9,0.93754]
[1760246463221,0.2776,3805.4,3804.9,0.4649]
[1760246463426,0.7384,3805.2,3805.1,0.3537]
[1760246463627,0.2775,3805.1,3805.0,0.47263]
[1760246463829,0.00289673,3805.1,3805.0,1.42999186]
[1760246464632,0.22589673,3805.1,3805.0,1.42999186]
[1760246464933,0.74659673,3805.1,3805.0,1.20279186]
[1760246465431,0.46909673,3805.1,3805.0,1.42999186]
[1760246466832,0.223,3804.7,3804.6,0.47268]
[1760246467037,0.4662,3804.2,3804.1,0.5813]
[1760246467238,0.4662,3804.2,3804.1,0.8085]
[1760246467734,0.7437,3804.7,3804.6,0.81198]
[1760246467935,0.4662,3804.7,3804.6,1.05634843]
[1760246468435,0.4662,3804.7,3804.6,1.28354843]
[1760246468734,0.7437,3805.0,3804.9,1.05394]
[1760246469035,0.4662,3805.0,3804.9,1.05394]
[1760246469935,0.7437,3805.0,3804.9,1.05394]
[1760246470334,0.7437,3805.0,3804.6,0.00236843]
[1760246470335,5.8263,3805.0,3804.6,0.00236843]
[1760246470536,0.2775,3804.9,3804.6,0.00236843]
[1760246470736,0.7437,3804.7,3804.6,0.00236843]
[1760246471941,0.4662,3804.7,3804.6,0.81086843]
[1760246473043,0.7437,3804.7,3804.6,0.00236843]
[1760246473536,5.7437,3804.7,3804.6,0.00236843]
[1760246473745,0.4662,3804.0,3803.8,0.81207]
[1760246473943,0.7437,3803.8,3803.7,0.47278]
[1760246474241,0.7437,3803.8,3803.5,0.475]
[1760246474242,0.7437,3803.3,3803.2,0.47285]
[1760246474441,0.4662,3803.3,3803.2,1.05415]
[1760246474642,0.4662,3803.3,3803.2,1.05611824]
[1760246475443,0.4662,3803.6,3803.5,1.05411]
[1760246475744,0.4662,3803.6,3803.5,1.42731]
[1760246476140,0.223,3803.9,3803.8,1.28128]
[1760246476439,0.7437,3804.2,3803.9,0.47276]
[1760246476642,0.4662,3804.0,3803.9,0.81206]
[1760246476842,0.4662,3804.0,3803.9,1.05406]
[1760246477045,0.4662,3804.0,3803.9,1.28126]
[1760246477245,0.2775,3804.5,3804.2,0.3393]
[1760246477449,0.2775,3804.5,3804.1,0.47274]
[1760246477745,0.47267,3804.7,3804.0,0.146]
[1760246478042,0.2775,3804.6,3804.0,0.146]
[1760246478438,0.2775,3804.5,3804.1,0.81204]
[1760246478637,0.47265,3804.9,3804.1,0.81204]
[1760246478835,0.2775,3804.8,3804.1,0.81204]
[1760246479037,0.2775,3804.8,3804.2,0.47272]
[1760246479242,0.55524,3805.0,3804.3,0.47271]
[1760246479633,0.47265,3804.9,3804.3,0.47271]
[1760246479838,0.7437,3804.4,3804.3,0.47271]
[1760246480545,0.7437,3804.4,3804.3,0.81201]
[1760246481344,0.4662,3804.4,3804.3,1.05401]
[1760246481539,0.223,3804.4,3804.3,1.28121]
[1760246481741,0.7437,3804.4,3804.3,0.81201]
[1760246482042,0.7437,3804.4,3804.3,0.47271]
[1760246482535,0.7437,3804.4,3804.3,0.81201]
[1760246483139,0.0826,3805.0,3803.9,0.3393]
[1760246483140,0.4662,3804.1,3803.9,0.3393]
[1760246483345,0.7437,3804.0,3803.9,0.47277]
[1760246483544,0.7437,3804.0,3803.9,0.81207]
[1760246483743,0.4662,3804.0,3803.9,1.28127]
[1760246484044,0.4662,3804.4,3804.3,1.05402]
[1760246484343,0.4662,3804.4,3804.3,1.28122]
[1760246484742,0.7437,3804.4,3804.3,1.05402]
[1760246484942,0.7437,3804.4,3804.3,0.81202]
[1760246485446,0.7437,3804.4,3804.3,0.47272]
[1760246486641,0.2775,3804.3,3804.1,0.47274]
[1760246486848,0.7437,3804.2,3804.1,0.47274]
[1760246487342,0.7437,3804.2,3804.1,0.81204]
[1760246487846,0.7437,3804.2,3804.1,0.47274]
[1760246489148,0.4662,3804.2,3804.1,1.28124]
[1760246489356,0.223,3804.2,3804.1,1.28124]
[1760246491755,0.4662,3804.6,3804.5,1.28119]
[1760246491947,0.4662,3804.6,3804.5,1.42719]
[1760246494162,5.266,3805.0,3804.9,0.47264]
[1760246494454,0.4706,3805.0,3804.9,1.29004]
[1760246494649,0.2379,3805.0,3804.9,1.29004]
[1760246495249,0.00289673,3805.1,3805.0,0.9597]
[1760246498860,0.4706,3805.9,3805.8,1.28993]
[1760246499759,0.2379,3805.9,3805.8,1.28993]
[1760246499962,0.47326315,3805.9,3805.8,1.28993]
[1760246501861,0.00266315,3805.9,3805.8,1.28993]
[1760246502067,0.2771,3807.2,3806.8,0.2408]
[1760246502361,0.4727,3806.7,3806.6,1.29363]
[1760246502953,0.229,3806.7,3806.6,1.29363]
[1760246503263,0.229,3807.0,3806.9,1.05649]
[1760246503456,0.4727,3807.5,3807.4,0.8212]
[1760246503651,0.75251791,3807.5,3807.4,0.5841]
[1760246503858,0.75251791,3807.5,3807.3,0.47233]
[1760246504057,0.7498,3807.4,3807.3,0.47233]
[1760246505157,0.7498,3807.4,3807.3,0.81563]
[1760246505662,0.7498,3807.4,3807.3,0.47233]
[1760246508858,5.7498,3807.4,3806.6,0.0032863]